[Event "Late-Titled-Tuesday-Blitz-April-30-2024"]
[Site "Chess.com"]
[Date "2024.04.30"]
[Round "3"]
[White "Hrant_ChessMood"]
[Black "NikitaShnadrygin"]
[Result "1-0"]
[WhiteElo "2944"]
[BlackElo "2675"]
[TimeControl "180+1"]
[EndTime "14:31:08 PDT"]
[Termination "Hrant_ChessMood won by resignation"]

1. Nf3 {[%clk 0:02:54.6]} 1... Nf6 {[%clk 0:02:57.9]} 2. c4 {[%clk 0:02:54.8]}
2... g6 {[%clk 0:02:58.3]} 3. Nc3 {[%clk 0:02:54.7]} 3... d5 {[%clk 0:02:58.9]}
4. cxd5 {[%clk 0:02:52.9]} 4... Nxd5 {[%clk 0:02:59.8]} 5. h4 {[%clk 0:02:53.6]}
5... Bg7 {[%clk 0:02:58.1]} 6. e4 {[%clk 0:02:49.6]} 6... Nxc3 {[%clk
0:02:57.5]} 7. dxc3 {[%clk 0:02:50.5]} 7... Qxd1+ {[%clk 0:02:55.2]} 8. Kxd1
{[%clk 0:02:51.4]} 8... Bg4 {[%clk 0:02:52.1]} 9. Kc2 {[%clk 0:02:46.4]} 9...
Nd7 {[%clk 0:02:37.8]} 10. Be3 {[%clk 0:02:46.4]} 10... c6 {[%clk 0:02:17.3]}
11. Nd2 {[%clk 0:02:46.5]} 11... Be6 {[%clk 0:02:14.7]} 12. Bc4 {[%clk
0:02:38.8]} 12... Bxc4 {[%clk 0:02:09.8]} 13. Nxc4 {[%clk 0:02:39.7]} 13... Kd8
{[%clk 0:01:17.6]} 14. h5 {[%clk 0:02:28.5]} 14... b5 {[%clk 0:01:15.7]} 15. Na5
{[%clk 0:02:20.3]} 15... Kc7 {[%clk 0:01:14]} 16. a4 {[%clk 0:02:17.7]} 16... a6
{[%clk 0:01:12]} 17. f3 {[%clk 0:02:05.1]} 17... Nb6 {[%clk 0:01:05.6]} 18. axb5
{[%clk 0:01:59]} 18... axb5 {[%clk 0:01:05.2]} 19. Bf4+ {[%clk 0:01:53.3]} 19...
e5 {[%clk 0:01:04.8]} 20. Be3 {[%clk 0:01:53.4]} 20... Bf6 {[%clk 0:00:59.8]}
21. g4 {[%clk 0:01:48.1]} 21... Be7 {[%clk 0:00:56.8]} 22. b3 {[%clk 0:01:34.1]}
22... g5 {[%clk 0:00:51.7]} 23. Ra2 {[%clk 0:01:26.8]} 23... Ra6 {[%clk
0:00:47.1]} 24. Rd1 {[%clk 0:01:17.7]} 24... Rha8 {[%clk 0:00:40.3]} 25. Bxb6+
{[%clk 0:01:17.9]} 25... Rxb6 {[%clk 0:00:32.5]} 26. b4 {[%clk 0:01:18.3]} 26...
c5 {[%clk 0:00:24.9]} 27. Kb3 {[%clk 0:01:10.2]} 27... c4+ {[%clk 0:00:24.7]}
28. Kc2 {[%clk 0:01:06]} 28... Rd6 {[%clk 0:00:24.6]} 29. Rxd6 {[%clk
0:01:01.1]} 29... Bxd6 {[%clk 0:00:24.4]} 30. Ra1 {[%clk 0:01:02]} 30... Be7
{[%clk 0:00:21.5]} 31. Rd1 {[%clk 0:00:53]} 31... f6 {[%clk 0:00:21.7]} 32. Rd5
{[%clk 0:00:51.3]} 32... Rb8 {[%clk 0:00:22.2]} 33. Kb1 {[%clk 0:00:45]} 33...
Rb6 {[%clk 0:00:22.1]} 34. Kc2 {[%clk 0:00:45.2]} 34... Bd6 {[%clk 0:00:21.9]}
35. Kd2 {[%clk 0:00:43]} 35... Kd7 {[%clk 0:00:16.6]} 36. Ke2 {[%clk 0:00:42.2]}
36... Ke6 {[%clk 0:00:16.8]} 37. Rd1 {[%clk 0:00:41.9]} 37... Bc7 {[%clk
0:00:14.1]} 38. Rd2 {[%clk 0:00:39.9]} 38... Rd6 {[%clk 0:00:11.1]} 39. Ra2
{[%clk 0:00:27.9]} 39... Ra6 {[%clk 0:00:10.6]} 40. Kd1 {[%clk 0:00:23.8]} 40...
Bb6 {[%clk 0:00:09.4]} 41. Kc2 {[%clk 0:00:22.4]} 41... Bc7 {[%clk 0:00:09.8]}
42. Kb1 {[%clk 0:00:22.7]} 42... Bb6 {[%clk 0:00:07.2]} 43. Rd2 {[%clk
0:00:21.3]} 43... Bxa5 {[%clk 0:00:07]} 44. Ra2 {[%clk 0:00:18]} 44... Kd6
{[%clk 0:00:07.4]} 45. bxa5 {[%clk 0:00:15.8]} 45... Kc5 {[%clk 0:00:07.4]} 46.
Rd2 {[%clk 0:00:09.5]} 46... Rxa5 {[%clk 0:00:07.8]} 47. Rd5+ {[%clk 0:00:10.2]}
47... Kc6 {[%clk 0:00:07.1]} 48. Rd8 {[%clk 0:00:11.1]} 48... b4 {[%clk
0:00:07.1]} 49. cxb4 {[%clk 0:00:11.1]} 49... Ra4 {[%clk 0:00:05.9]} 50. Rf8
{[%clk 0:00:10.2]} 50... Rxb4+ {[%clk 0:00:05.9]} 51. Kc2 {[%clk 0:00:10.9]}
51... Ra4 {[%clk 0:00:05.3]} 52. Rxf6+ {[%clk 0:00:10.4]} 52... Kc5 {[%clk
0:00:06]} 53. Rf7 {[%clk 0:00:11]} 53... Kd4 {[%clk 0:00:05.7]} 54. Rd7+ {[%clk
0:00:10.6]} 54... Ke3 {[%clk 0:00:06.2]} 55. Rxh7 {[%clk 0:00:11.5]} 55... Kxf3
{[%clk 0:00:05.5]} 56. h6 {[%clk 0:00:09.1]} 56... Kxe4 {[%clk 0:00:05.3]} 57.
Rg7 {[%clk 0:00:08.5]} 57... Ra2+ {[%clk 0:00:05.9]} 58. Kc3 {[%clk 0:00:08.4]}
58... Kf4 {[%clk 0:00:05.2]} 59. Kxc4 {[%clk 0:00:06.8]} 59... Kxg4 {[%clk
0:00:04.3]} 60. h7 {[%clk 0:00:06.1]} 60... Rh2 {[%clk 0:00:04.2]} 61. Kd5
{[%clk 0:00:07]} 61... Kf4 {[%clk 0:00:03.1]} 62. Rf7+ {[%clk 0:00:07]} 62...
Kg3 {[%clk 0:00:03.8]} 63. Kxe5 {[%clk 0:00:07.3]} 63... g4 {[%clk 0:00:04.7]}
64. Kf5 {[%clk 0:00:05.8]} 64... Rf2+ {[%clk 0:00:04.3]} 65. Kg5 {[%clk
0:00:05.6]} 65... Rh2 {[%clk 0:00:04.9]} 66. Ra7 {[%clk 0:00:04.6]} 66... Rh1
{[%clk 0:00:04.1]} 67. Ra3+ {[%clk 0:00:04.2]} 67... Kf2 {[%clk 0:00:04.6]} 68.
Ra2+ {[%clk 0:00:04.4]} 68... Kf3 {[%clk 0:00:04.9]} 69. Ra3+ {[%clk 0:00:04.8]}
69... Kf2 {[%clk 0:00:05.5]} 70. Ra2+ {[%clk 0:00:03.2]} 70... Kf3 {[%clk
0:00:05.9]} 71. Ra7 {[%clk 0:00:03.3]} 71... g3 {[%clk 0:00:05.2]} 72. Rf7+
{[%clk 0:00:04]} 72... Kg2 {[%clk 0:00:05.3]} 73. Kg4 {[%clk 0:00:04.3]} 73...
Kh2 {[%clk 0:00:03.6]} 74. h8=Q+ {[%clk 0:00:03.7]} 74... Kg1 {[%clk 0:00:04.5]}
75. Qd4+ {[%clk 0:00:03.5]} 1-0

[Event "Late-Titled-Tuesday-Blitz-April-30-2024"]
[Site "Chess.com"]
[Date "2024.04.30"]
[Round "3"]
[White "wild3000"]
[Black "MyDream003"]
[Result "0-1"]
[WhiteElo "2506"]
[BlackElo "2827"]
[TimeControl "180+1"]
[EndTime "14:31:08 PDT"]
[Termination "MyDream003 won on time"]

1. d4 {[%clk 0:02:42.2]} 1... Nf6 {[%clk 0:02:58.1]} 2. Nf3 {[%clk 0:02:41.6]}
2... c5 {[%clk 0:02:56.9]} 3. e3 {[%clk 0:02:41.6]} 3... b6 {[%clk 0:02:56.3]}
4. Be2 {[%clk 0:02:41]} 4... Bb7 {[%clk 0:02:56.4]} 5. O-O {[%clk 0:02:41.9]}
5... g6 {[%clk 0:02:56.7]} 6. c4 {[%clk 0:02:42.2]} 6... Bg7 {[%clk 0:02:56.1]}
7. Nc3 {[%clk 0:02:42.5]} 7... O-O {[%clk 0:02:56.3]} 8. b3 {[%clk 0:02:41.2]}
8... cxd4 {[%clk 0:02:53.1]} 9. Nxd4 {[%clk 0:02:40.3]} 9... d6 {[%clk
0:02:48.4]} 10. Bb2 {[%clk 0:02:39.9]} 10... Nbd7 {[%clk 0:02:48.7]} 11. Rc1
{[%clk 0:02:37.8]} 11... a6 {[%clk 0:02:47.4]} 12. Bf3 {[%clk 0:02:37.7]} 12...
Qb8 {[%clk 0:02:44.1]} 13. Bxb7 {[%clk 0:02:36.9]} 13... Qxb7 {[%clk 0:02:44.4]}
14. Qf3 {[%clk 0:02:37]} 14... Qxf3 {[%clk 0:02:39.9]} 15. Nxf3 {[%clk
0:02:35.1]} 15... Rfc8 {[%clk 0:02:36.2]} 16. Rfd1 {[%clk 0:02:30]} 16... Ra7
{[%clk 0:02:30.5]} 17. Kf1 {[%clk 0:02:25.6]} 17... Rac7 {[%clk 0:02:28.5]} 18.
Ke2 {[%clk 0:02:23.2]} 18... Nc5 {[%clk 0:02:07.4]} 19. Nd4 {[%clk 0:02:16.9]}
19... Nce4 {[%clk 0:01:50.4]} 20. Nxe4 {[%clk 0:02:15.2]} 20... Nxe4 {[%clk
0:01:51.3]} 21. f3 {[%clk 0:02:02.6]} 21... Nc5 {[%clk 0:01:50.9]} 22. Ba3
{[%clk 0:01:59]} 22... h5 {[%clk 0:01:43.2]} 23. h4 {[%clk 0:01:55.4]} 23... Nb7
{[%clk 0:01:35.9]} 24. g4 {[%clk 0:01:45]} 24... Kh7 {[%clk 0:01:29.1]} 25. Kd3
{[%clk 0:01:34.3]} 25... Bf6 {[%clk 0:01:27]} 26. Ne2 {[%clk 0:01:23.6]} 26...
Nc5+ {[%clk 0:01:22.1]} 27. Bxc5 {[%clk 0:01:23.2]} 27... Rxc5 {[%clk
0:01:17.7]} 28. g5 {[%clk 0:01:07]} 28... Bg7 {[%clk 0:00:56.2]} 29. b4 {[%clk
0:00:42.7]} 29... R5c7 {[%clk 0:00:54]} 30. Nd4 {[%clk 0:00:37.1]} 30... d5
{[%clk 0:00:37.6]} 31. c5 {[%clk 0:00:32.9]} 31... bxc5 {[%clk 0:00:38.5]} 32.
bxc5 {[%clk 0:00:33.8]} 32... Rxc5 {[%clk 0:00:39.2]} 33. Rxc5 {[%clk 0:00:34]}
33... Rxc5 {[%clk 0:00:40.1]} 34. Rb1 {[%clk 0:00:33.1]} 34... Ra5 {[%clk
0:00:38.3]} 35. Rb2 {[%clk 0:00:27.3]} 35... Ra3+ {[%clk 0:00:27.1]} 36. Ke2
{[%clk 0:00:26.2]} 36... Ra4 {[%clk 0:00:19.4]} 37. Rd2 {[%clk 0:00:25.4]} 37...
Bxd4 {[%clk 0:00:05.7]} 38. exd4 {[%clk 0:00:24.5]} 38... Ra3 {[%clk 0:00:06.3]}
39. Rb2 {[%clk 0:00:20.7]} 39... Kg7 {[%clk 0:00:06.5]} 40. Kf2 {[%clk
0:00:20.7]} 40... f6 {[%clk 0:00:06.7]} 41. gxf6+ {[%clk 0:00:18.4]} 41... exf6
{[%clk 0:00:06.8]} 42. Rb7+ {[%clk 0:00:17.3]} 42... Kh6 {[%clk 0:00:07.3]} 43.
Rb2 {[%clk 0:00:17.2]} 43... g5 {[%clk 0:00:07.6]} 44. Kg3 {[%clk 0:00:17.6]}
44... Kg6 {[%clk 0:00:07.9]} 45. hxg5 {[%clk 0:00:16.8]} 45... fxg5 {[%clk
0:00:07.3]} 46. Rb6+ {[%clk 0:00:14.9]} 46... Kf5 {[%clk 0:00:07.1]} 47. Rd6
{[%clk 0:00:14.6]} 47... g4 {[%clk 0:00:04.6]} 48. Rxd5+ {[%clk 0:00:14.2]}
48... Kg6 {[%clk 0:00:04.3]} 49. Rd6+ {[%clk 0:00:13.9]} 49... Kf7 {[%clk
0:00:04.9]} 50. Kh4 {[%clk 0:00:13.7]} 50... gxf3 {[%clk 0:00:04.7]} 51. Kg5
{[%clk 0:00:13.1]} 51... Ke7 {[%clk 0:00:03.5]} 52. Rf6 {[%clk 0:00:11.5]} 52...
h4 {[%clk 0:00:04.2]} 53. d5 {[%clk 0:00:11.8]} 53... h3 {[%clk 0:00:04.4]} 54.
d6+ {[%clk 0:00:11.9]} 54... Kd7 {[%clk 0:00:05]} 55. Rh6 {[%clk 0:00:12]} 55...
f2 {[%clk 0:00:05.3]} 56. Rf6 {[%clk 0:00:11.9]} 56... h2 {[%clk 0:00:05.6]} 57.
Rf7+ {[%clk 0:00:10.9]} 57... Kxd6 {[%clk 0:00:05.9]} 58. Rf6+ {[%clk
0:00:11.4]} 58... Ke7 {[%clk 0:00:06.2]} 59. Rxf2 {[%clk 0:00:08.3]} 59... h1=Q
{[%clk 0:00:05.8]} 60. Kf4 {[%clk 0:00:07.7]} 60... Qh4+ {[%clk 0:00:05.3]} 61.
Ke5 {[%clk 0:00:06.4]} 61... Qxf2 {[%clk 0:00:06.2]} 62. Kd5 {[%clk 0:00:05.7]}
62... Ra5+ {[%clk 0:00:05.5]} 63. Kc6 {[%clk 0:00:05.4]} 63... Qc5+ {[%clk
0:00:05.7]} 64. Kb7 {[%clk 0:00:05.3]} 64... Rb5+ {[%clk 0:00:06.6]} 65. Ka8
{[%clk 0:00:03.4]} 65... Qb6 {[%clk 0:00:06.9]} 0-1

[Event "Late-Titled-Tuesday-Blitz-April-30-2024"]
[Site "Chess.com"]
[Date "2024.04.30"]
[Round "3"]
[White "IngOscarArdila"]
[Black "ELPRIMO0O0"]
[Result "1-0"]
[WhiteElo "2331"]
[BlackElo "2551"]
[TimeControl "180+1"]
[EndTime "14:31:27 PDT"]
[Termination "IngOscarArdila won by checkmate"]

1. d4 {[%clk 0:02:59.6]} 1... Nf6 {[%clk 0:02:58]} 2. Nf3 {[%clk 0:02:59.9]}
2... c5 {[%clk 0:02:57.8]} 3. c3 {[%clk 0:02:59.6]} 3... d5 {[%clk 0:02:57.3]}
4. Nbd2 {[%clk 0:02:58.5]} 4... Nc6 {[%clk 0:02:56.5]} 5. e3 {[%clk 0:02:58.8]}
5... Bf5 {[%clk 0:02:53.1]} 6. Be2 {[%clk 0:02:58.7]} 6... e6 {[%clk 0:02:53.1]}
7. O-O {[%clk 0:02:58.6]} 7... Bd6 {[%clk 0:02:53.4]} 8. b3 {[%clk 0:02:58.9]}
8... O-O {[%clk 0:02:53.3]} 9. Bb2 {[%clk 0:02:59]} 9... Qe7 {[%clk 0:02:53.2]}
10. Rc1 {[%clk 0:02:58.4]} 10... e5 {[%clk 0:02:53.2]} 11. dxe5 {[%clk
0:02:57.9]} 11... Nxe5 {[%clk 0:02:54.1]} 12. Nxe5 {[%clk 0:02:58.1]} 12... Bxe5
{[%clk 0:02:55]} 13. Nf3 {[%clk 0:02:58.6]} 13... Bc7 {[%clk 0:02:43.9]} 14. c4
{[%clk 0:02:58.3]} 14... Rad8 {[%clk 0:02:43.3]} 15. cxd5 {[%clk 0:02:57.6]}
15... Nxd5 {[%clk 0:02:44.2]} 16. Qe1 {[%clk 0:02:56.4]} 16... Nb4 {[%clk
0:02:41.1]} 17. Qc3 {[%clk 0:02:49.9]} 17... f6 {[%clk 0:02:26.9]} 18. Qxc5
{[%clk 0:02:47.9]} 18... Bd6 {[%clk 0:02:24.5]} 19. Qxf5 {[%clk 0:02:46]} 19...
Nxa2 {[%clk 0:02:19.8]} 20. Bc4+ {[%clk 0:02:41.5]} 20... Kh8 {[%clk 0:02:19.2]}
21. Ra1 {[%clk 0:02:41.1]} 21... Nb4 {[%clk 0:02:17.4]} 22. Rxa7 {[%clk
0:02:40.1]} 22... Bc5 {[%clk 0:02:15.7]} 23. Raa1 {[%clk 0:02:34.5]} 23... Nc6
{[%clk 0:01:53.5]} 24. Qe6 {[%clk 0:02:31.2]} 24... Qc7 {[%clk 0:01:51.7]} 25.
Qf5 {[%clk 0:02:25.1]} 25... Ne7 {[%clk 0:01:45.9]} 26. Qh5 {[%clk 0:02:23.9]}
26... Ng6 {[%clk 0:01:41.3]} 27. Rfd1 {[%clk 0:02:18.8]} 27... Qb6 {[%clk
0:01:36.3]} 28. Bd4 {[%clk 0:02:15.6]} 28... Bxd4 {[%clk 0:01:31.1]} 29. Nxd4
{[%clk 0:02:15.6]} 29... Rd6 {[%clk 0:01:19.6]} 30. Nf5 {[%clk 0:02:10.3]} 30...
Rxd1+ {[%clk 0:01:20.5]} 31. Rxd1 {[%clk 0:02:09.5]} 31... Ne5 {[%clk
0:01:14.3]} 32. Qh4 {[%clk 0:02:08]} 32... Rd8 {[%clk 0:01:08.9]} 33. Nd4 {[%clk
0:01:58]} 33... Qb4 {[%clk 0:00:58]} 34. h3 {[%clk 0:01:51.3]} 34... Nxc4 {[%clk
0:00:46.2]} 35. bxc4 {[%clk 0:01:50.9]} 35... Qxc4 {[%clk 0:00:47.1]} 36. Qe4
{[%clk 0:01:44.3]} 36... b5 {[%clk 0:00:44]} 37. Rb1 {[%clk 0:01:44.3]} 37... b4
{[%clk 0:00:42.8]} 38. Qb7 {[%clk 0:01:37.4]} 38... Qa2 {[%clk 0:00:31.1]} 39.
Qxb4 {[%clk 0:01:34.3]} 39... h6 {[%clk 0:00:30]} 40. Qb3 {[%clk 0:01:33]} 40...
Qa5 {[%clk 0:00:29.1]} 41. Qb6 {[%clk 0:01:32]} 41... Qa8 {[%clk 0:00:29.2]} 42.
Qb7 {[%clk 0:01:30.6]} 42... Qa2 {[%clk 0:00:25]} 43. Nf5 {[%clk 0:01:24.9]}
43... Rg8 {[%clk 0:00:23.2]} 44. Qb3 {[%clk 0:01:22.6]} 44... Qa5 {[%clk
0:00:22.2]} 45. Qb5 {[%clk 0:01:22.3]} 45... Qa2 {[%clk 0:00:20.1]} 46. h4
{[%clk 0:01:21.4]} 46... Qe6 {[%clk 0:00:19.1]} 47. h5 {[%clk 0:01:20.3]} 47...
Qe4 {[%clk 0:00:19.4]} 48. Ng3 {[%clk 0:01:11.2]} 48... Qg4 {[%clk 0:00:17.9]}
49. Qf5 {[%clk 0:01:07.8]} 49... Qc4 {[%clk 0:00:16.6]} 50. Qe4 {[%clk
0:01:03.1]} 50... Qf7 {[%clk 0:00:14.9]} 51. Rb7 {[%clk 0:01:00.4]} 51... Qa2
{[%clk 0:00:13]} 52. Qb4 {[%clk 0:00:51.6]} 52... Qa1+ {[%clk 0:00:12.5]} 53.
Qb1 {[%clk 0:00:51.5]} 53... Qe5 {[%clk 0:00:12.8]} 54. Rb5 {[%clk 0:00:48.6]}
54... Qc7 {[%clk 0:00:12]} 55. Nf5 {[%clk 0:00:46.6]} 55... Rd8 {[%clk
0:00:11.8]} 56. Rb7 {[%clk 0:00:45.2]} 56... Qe5 {[%clk 0:00:10.3]} 57. Rxg7
{[%clk 0:00:40.7]} 57... Qe4 {[%clk 0:00:03.6]} 58. Qxe4 {[%clk 0:00:38.1]}
58... Rd1+ {[%clk 0:00:04]} 59. Kh2 {[%clk 0:00:37.4]} 59... Rh1+ {[%clk
0:00:04.9]} 60. Kg3 {[%clk 0:00:33.8]} 60... Rh3+ {[%clk 0:00:05.3]} 61. Kf4
{[%clk 0:00:33]} 61... Rf3+ {[%clk 0:00:05.7]} 62. Kg4 {[%clk 0:00:32.3]} 62...
Rf4+ {[%clk 0:00:04.8]} 63. Kh3 {[%clk 0:00:30.3]} 63... Rxe4 {[%clk 0:00:02.8]}
64. Rg6 {[%clk 0:00:29.3]} 64... Kh7 {[%clk 0:00:02.2]} 65. Rxh6+ {[%clk
0:00:29]} 65... Kg8 {[%clk 0:00:03.1]} 66. Rxf6 {[%clk 0:00:29.3]} 66... Kh8
{[%clk 0:00:04]} 67. f4 {[%clk 0:00:28.2]} 67... Re8 {[%clk 0:00:03.1]} 68. Kg4
{[%clk 0:00:28.2]} 68... Ra8 {[%clk 0:00:03.6]} 69. Kg5 {[%clk 0:00:27.6]} 69...
Ra2 {[%clk 0:00:04.5]} 70. g4 {[%clk 0:00:27.1]} 70... Ra8 {[%clk 0:00:03.8]}
71. h6 {[%clk 0:00:23.1]} 71... Rg8+ {[%clk 0:00:04]} 72. Rg6 {[%clk 0:00:23]}
72... Ra8 {[%clk 0:00:03.2]} 73. Rg7 {[%clk 0:00:22.9]} 73... Ra5 {[%clk
0:00:02.6]} 74. Rc7 {[%clk 0:00:22.1]} 74... Ra8 {[%clk 0:00:02.6]} 75. Kh5
{[%clk 0:00:21.4]} 75... Rg8 {[%clk 0:00:03]} 76. g5 {[%clk 0:00:21.1]} 76...
Ra8 {[%clk 0:00:03.2]} 77. g6 {[%clk 0:00:20.8]} 77... Ra5 {[%clk 0:00:03.4]}
78. Kg4 {[%clk 0:00:20.2]} 78... Ra8 {[%clk 0:00:02.6]} 79. Re7 {[%clk
0:00:18.7]} 79... Rf8 {[%clk 0:00:02]} 80. g7+ {[%clk 0:00:18.5]} 80... Kg8
{[%clk 0:00:02.2]} 81. gxf8=Q+ {[%clk 0:00:18.6]} 81... Kxf8 {[%clk 0:00:03.1]}
82. Rc7 {[%clk 0:00:18.8]} 82... Kg8 {[%clk 0:00:04]} 83. Kg5 {[%clk 0:00:19]}
83... Kh8 {[%clk 0:00:04.2]} 84. Kg6 {[%clk 0:00:19]} 84... Kg8 {[%clk
0:00:04.6]} 85. Rc8# {[%clk 0:00:19.4]} 1-0

[Event "Late-Titled-Tuesday-Blitz-April-30-2024"]
[Site "Chess.com"]
[Date "2024.04.30"]
[Round "3"]
[White "MeisterJabo"]
[Black "FedaMaster"]
[Result "1-0"]
[WhiteElo "2466"]
[BlackElo "2628"]
[TimeControl "180+1"]
[EndTime "14:31:41 PDT"]
[Termination "MeisterJabo won by checkmate"]

1. c4 {[%clk 0:03:00.9]} 1... e6 {[%clk 0:02:53.6]} 2. g3 {[%clk 0:03:00.8]}
2... f5 {[%clk 0:02:50.2]} 3. Bg2 {[%clk 0:03:01.7]} 3... Nf6 {[%clk 0:02:49.7]}
4. Nc3 {[%clk 0:03:01.7]} 4... d5 {[%clk 0:02:40.5]} 5. d4 {[%clk 0:02:52.3]}
5... c6 {[%clk 0:02:30.9]} 6. Nf3 {[%clk 0:02:50.8]} 6... Bd6 {[%clk 0:02:20.5]}
7. O-O {[%clk 0:02:48]} 7... O-O {[%clk 0:02:19.7]} 8. b3 {[%clk 0:02:46.3]}
8... Bd7 {[%clk 0:02:19]} 9. Bb2 {[%clk 0:02:46.4]} 9... Be8 {[%clk 0:02:19.1]}
10. Ne5 {[%clk 0:02:41.1]} 10... Nbd7 {[%clk 0:02:14.2]} 11. f4 {[%clk
0:02:35.9]} 11... Bb4 {[%clk 0:02:03.9]} 12. e3 {[%clk 0:02:30.1]} 12... Bh5
{[%clk 0:02:01.6]} 13. Qc2 {[%clk 0:02:26.6]} 13... Qe7 {[%clk 0:01:57]} 14. Nd1
{[%clk 0:02:15.4]} 14... Bxd1 {[%clk 0:01:55.7]} 15. Raxd1 {[%clk 0:02:13.6]}
15... Nxe5 {[%clk 0:01:56.2]} 16. fxe5 {[%clk 0:02:10]} 16... Ne4 {[%clk
0:01:57.1]} 17. Bxe4 {[%clk 0:02:10]} 17... fxe4 {[%clk 0:01:53.1]} 18. c5
{[%clk 0:02:06.3]} 18... Qg5 {[%clk 0:01:50.6]} 19. Qe2 {[%clk 0:02:01.2]} 19...
h5 {[%clk 0:01:49.3]} 20. a3 {[%clk 0:02:00.9]} 20... Ba5 {[%clk 0:01:48.8]} 21.
Bc1 {[%clk 0:01:42.9]} 21... Bc7 {[%clk 0:01:41.7]} 22. Rxf8+ {[%clk 0:01:40.7]}
22... Rxf8 {[%clk 0:01:40.9]} 23. Rf1 {[%clk 0:01:41.4]} 23... Rxf1+ {[%clk
0:01:07]} 24. Qxf1 {[%clk 0:01:42.3]} 24... Qg4 {[%clk 0:01:06.4]} 25. Kg2
{[%clk 0:01:17.3]} 25... h4 {[%clk 0:01:02.9]} 26. Bd2 {[%clk 0:01:17.7]} 26...
h3+ {[%clk 0:01:02.4]} 27. Kg1 {[%clk 0:01:17.5]} 27... Bd8 {[%clk 0:00:59.4]}
28. Kf2 {[%clk 0:01:01.9]} 28... Bg5 {[%clk 0:00:43.5]} 29. Ke1 {[%clk
0:01:01.1]} 29... Qh5 {[%clk 0:00:35.8]} 30. Qe2 {[%clk 0:01:00.6]} 30... Qxe2+
{[%clk 0:00:23]} 31. Kxe2 {[%clk 0:01:00.7]} 31... Kf7 {[%clk 0:00:22.9]} 32.
Be1 {[%clk 0:00:50.7]} 32... Kg6 {[%clk 0:00:20.3]} 33. Ba5 {[%clk 0:00:45.1]}
33... Kh5 {[%clk 0:00:19.2]} 34. Bc7 {[%clk 0:00:44.5]} 34... Kg4 {[%clk
0:00:18.5]} 35. a4 {[%clk 0:00:38.3]} 35... g6 {[%clk 0:00:16.8]} 36. Kf2 {[%clk
0:00:36.4]} 36... Be7 {[%clk 0:00:16]} 37. b4 {[%clk 0:00:32.6]} 37... a6 {[%clk
0:00:13.8]} 38. Bd6 {[%clk 0:00:31.2]} 38... Bd8 {[%clk 0:00:13.5]} 39. Bf8
{[%clk 0:00:24.5]} 39... Kh5 {[%clk 0:00:13.6]} 40. Bd6 {[%clk 0:00:22.8]} 40...
Kh6 {[%clk 0:00:11.2]} 41. Bf8+ {[%clk 0:00:22.6]} 41... Kh7 {[%clk 0:00:11.4]}
42. Bd6 {[%clk 0:00:23.5]} 42... Kg7 {[%clk 0:00:11.2]} 43. Bb8 {[%clk
0:00:22.1]} 43... Kf7 {[%clk 0:00:11.5]} 44. Bd6 {[%clk 0:00:22.6]} 44... Ke8
{[%clk 0:00:12]} 45. Bb8 {[%clk 0:00:22.4]} 45... Kd7 {[%clk 0:00:12.7]} 46. Bd6
{[%clk 0:00:22.8]} 46... Kc8 {[%clk 0:00:13.1]} 47. Bf8 {[%clk 0:00:23]} 47...
b6 {[%clk 0:00:11.9]} 48. cxb6 {[%clk 0:00:21.2]} 48... Kb7 {[%clk 0:00:09.7]}
49. a5 {[%clk 0:00:21.6]} 49... Bg5 {[%clk 0:00:09]} 50. Bd6 {[%clk 0:00:20.5]}
50... Bd8 {[%clk 0:00:09.2]} 51. Bf8 {[%clk 0:00:20.8]} 51... Bg5 {[%clk
0:00:09.7]} 52. Bc5 {[%clk 0:00:04.3]} 52... Bd8 {[%clk 0:00:09.5]} 53. Bd6
{[%clk 0:00:04.1]} 53... Bg5 {[%clk 0:00:09.4]} 54. Bf8 {[%clk 0:00:04.3]} 54...
Bd8 {[%clk 0:00:09.6]} 55. Bd6 {[%clk 0:00:03.8]} 55... Bg5 {[%clk 0:00:08.5]}
56. Ke2 {[%clk 0:00:04.7]} 56... Bh6 {[%clk 0:00:08.5]} 57. g4 {[%clk
0:00:05.2]} 57... Bg5 {[%clk 0:00:08.8]} 58. Kf2 {[%clk 0:00:05.4]} 58... Bh4+
{[%clk 0:00:09.2]} 59. Ke2 {[%clk 0:00:06]} 59... Bd8 {[%clk 0:00:08.4]} 60. Bf8
{[%clk 0:00:06.2]} 60... Bg5 {[%clk 0:00:08.6]} 61. Kd2 {[%clk 0:00:04.5]} 61...
Bh4 {[%clk 0:00:07.4]} 62. Bg7 {[%clk 0:00:04.4]} 62... Bg3 {[%clk 0:00:07.4]}
63. Ke2 {[%clk 0:00:02.4]} 63... Bxh2 {[%clk 0:00:07.9]} 64. Kf2 {[%clk
0:00:03]} 64... Kb8 {[%clk 0:00:06.6]} 65. Bf6 {[%clk 0:00:02.6]} 65... Kc8
{[%clk 0:00:07]} 66. Bh4 {[%clk 0:00:03.3]} 66... Kb7 {[%clk 0:00:07.9]} 67. Bg3
{[%clk 0:00:03.9]} 67... Bxg3+ {[%clk 0:00:06.4]} 68. Kxg3 {[%clk 0:00:04.8]}
68... g5 {[%clk 0:00:07]} 69. Kxh3 {[%clk 0:00:04.9]} 69... Kb8 {[%clk
0:00:06.8]} 70. Kg3 {[%clk 0:00:05.8]} 70... Kb7 {[%clk 0:00:07.3]} 71. Kf2
{[%clk 0:00:06.7]} 71... Kb8 {[%clk 0:00:07.8]} 72. Ke2 {[%clk 0:00:07.6]} 72...
Kb7 {[%clk 0:00:08.3]} 73. Kd2 {[%clk 0:00:08.5]} 73... Kb8 {[%clk 0:00:08.9]}
74. Kc3 {[%clk 0:00:08.8]} 74... Kc8 {[%clk 0:00:09.6]} 75. b5 {[%clk
0:00:03.4]} 75... cxb5 {[%clk 0:00:05.9]} 76. Kb4 {[%clk 0:00:03.6]} 76... Kb7
{[%clk 0:00:04.6]} 77. Kc5 {[%clk 0:00:03.4]} 77... Kb8 {[%clk 0:00:04.9]} 78.
Kb4 {[%clk 0:00:03]} 78... Kc8 {[%clk 0:00:04.8]} 79. Kc3 {[%clk 0:00:03.9]}
79... Kb7 {[%clk 0:00:04.9]} 80. Kb3 {[%clk 0:00:04.8]} 80... Kc6 {[%clk
0:00:05.3]} 81. Ka3 {[%clk 0:00:05.7]} 81... Kb7 {[%clk 0:00:05.8]} 82. Kb2
{[%clk 0:00:06.1]} 82... Kb8 {[%clk 0:00:06.1]} 83. Kc2 {[%clk 0:00:07]} 83...
Kc8 {[%clk 0:00:06.7]} 84. Kc3 {[%clk 0:00:07.9]} 84... Kb7 {[%clk 0:00:07.3]}
85. Kb4 {[%clk 0:00:08.8]} 85... Kc6 {[%clk 0:00:07.9]} 86. Kb3 {[%clk
0:00:07.7]} 86... Kd7 {[%clk 0:00:07.8]} 87. Kc3 {[%clk 0:00:07.4]} 87... Kd8
{[%clk 0:00:07]} 88. Kb4 {[%clk 0:00:08.3]} 88... Kc8 {[%clk 0:00:07.6]} 89. Kc5
{[%clk 0:00:09.2]} 89... Kb7 {[%clk 0:00:08.2]} 90. Kb4 {[%clk 0:00:01.6]} 90...
Kc6 {[%clk 0:00:09.1]} 91. Kb3 {[%clk 0:00:02.3]} 91... Kb7 {[%clk 0:00:09.6]}
92. Kc3 {[%clk 0:00:03]} 92... Kc6 {[%clk 0:00:10.5]} 93. Kb4 {[%clk 0:00:03.8]}
93... Kb7 {[%clk 0:00:11.1]} 94. Kc5 {[%clk 0:00:04.5]} 94... Kb8 {[%clk
0:00:11.4]} 95. Kd6 {[%clk 0:00:05]} 95... Ka8 {[%clk 0:00:12.3]} 96. Kxe6
{[%clk 0:00:05.9]} 96... b4 {[%clk 0:00:12.3]} 97. Kxd5 {[%clk 0:00:06.8]} 97...
b3 {[%clk 0:00:12.7]} 98. e6 {[%clk 0:00:07.7]} 98... b2 {[%clk 0:00:13.3]} 99.
e7 {[%clk 0:00:08.6]} 99... b1=Q {[%clk 0:00:14]} 100. e8=Q+ {[%clk 0:00:09.4]}
100... Kb7 {[%clk 0:00:14.4]} 101. Qc6+ {[%clk 0:00:09.8]} 101... Kb8 {[%clk
0:00:14.6]} 102. Qc7+ {[%clk 0:00:10.7]} 102... Ka8 {[%clk 0:00:15.2]} 103. Qa7#
{[%clk 0:00:11.5]} 1-0